fUST/lending_fUST_20250830
["ID","MTS","AMOUNT","RATE_DAILY","PERIOD"]
[382212611,1756546870882,-500.0,0.00019907,2]
[382212612,1756546870913,-543.36339353,0.00019907,2]
[382212613,1756546870946,-500.0,0.00019907,2]
[382212614,1756546870978,-543.36339353,0.00019907,2]
[382212615,1756546871009,-500.0,0.00019907,2]
[382212616,1756546871042,-543.36339353,0.00019907,2]
[382212617,1756546871073,-500.0,0.00019907,2]
[382212618,1756546871105,-23.01267117,0.00019907,2]
[382212619,1756546871251,-520.35072236,0.00019907,2]
[382212620,1756546871281,-500.0,0.00019907,2]
[382212621,1756546871312,-543.36339353,0.00019907,2]
[382212622,1756546871342,-500.0,0.00019907,2]
[382212623,1756546871376,-543.36339353,0.00019907,2]
[382212624,1756546871407,-543.36339353,0.00019907,2]
[382212625,1756546871440,-500.0,0.00019907,2]
[382212626,1756546871473,-543.36339353,0.00019907,2]
[382212627,1756546871504,-543.36339353,0.00019907,2]
[382212628,1756546871535,-25.67461998,0.00019907,2]
[382212629,1756546871608,-474.32538002,0.00019907,2]
[382212630,1756546871640,-543.36339353,0.00019907,2]
[382212631,1756546871673,-500.0,0.00019907,2]
[382212632,1756546871705,-543.36339353,0.00019907,2]
[382212633,1756546871734,-500.0,0.00019907,2]
[382212634,1756546871765,-543.36339353,0.00019907,2]
[382212635,1756546871796,-500.0,0.00019907,2]
[382212636,1756546871828,-543.36339353,0.00019907,2]
[382212637,1756546871860,-543.36339353,0.00019907,2]
[382212638,1756546871890,-74.36191113,0.00019907,2]
[382212639,1756546872057,-469.0014824,0.00019907,2]
[382212640,1756546872087,-500.0,0.00019907,2]
[382212641,1756546872119,-543.36339353,0.00019907,2]
[382212642,1756546872150,-500.0,0.00019907,2]
[382212643,1756546872184,-500.0,0.00019907,2]
[382212644,1756546872217,-543.36339353,0.00019907,2]
[382212645,1756546872250,-500.0,0.00019907,2]
[382212646,1756546872284,-543.36339353,0.00019907,2]
[382212647,1756546872315,-543.36339353,0.00019907,2]
[382212648,1756546872346,-215.09988696,0.00019907,2]
[382212649,1756546874455,-209.0512705,0.00019907,2]
[382212650,1756546874513,-75.84884254,0.00019907,2]
[382212651,1756546874523,-424.15115746,0.00019907,2]
[382212652,1756546874538,-119.21223607,0.00019907,2]
[382212653,1756546874548,-424.15115746,0.00019907,2]
[382212654,1756546874565,-119.21223607,0.00019907,2]
[382212655,1756546874574,-380.78776393,0.00019907,2]
[382212656,1756546874589,-162.5756296,0.00019907,2]
[382212657,1756546874599,-380.78776393,0.00019907,2]
[382212658,1756546874618,-162.5756296,0.00019907,2]
[382212659,1756546874628,-380.78776393,0.00019907,2]
[382212660,1756546874644,-162.5756296,0.00019907,2]
[382212661,1756546874653,-337.4243704,0.00019907,2]
[382212662,1756546928235,-851.86561959,0.00019807,2]
[382212663,1756546928265,-946.55,0.00019819,2]
[382212664,1756546928296,-2081.92,0.00019819,2]
[382212665,1756546928326,-300.0,0.00019906,2]
[382212666,1756546928354,-439.33876082,0.00019906,2]
[382212667,1756546928458,-760.66123918,0.00019906,2]
[382212668,1756546928492,-205.93902313,0.00019907,2]
[382212669,1756546928526,-543.36339353,0.00019907,2]
[382212670,1756546928558,-543.36339353,0.00019907,2]
[382212671,1756546928589,-543.36339353,0.00019907,2]
[382212672,1756546928621,-543.36339353,0.00019907,2]
[382212673,1756546928653,-543.36339353,0.00019907,2]
[382212674,1756546928684,-543.36339353,0.00019907,2]
[382212675,1756546928714,-543.36339353,0.00019907,2]
[382212676,1756546928860,-543.36339353,0.00019907,2]
[382212677,1756546928891,-543.36339353,0.00019907,2]
[382212678,1756546928923,-543.36339353,0.00019907,2]
[382212679,1756546928971,-543.36339353,0.00019907,2]
[382212680,1756546929004,-543.36339353,0.00019907,2]
[382212681,1756546929035,-543.36339353,0.00019907,2]
[382212682,1756546929065,-543.36339353,0.00019907,2]
[382212683,1756546929097,-543.36339353,0.00019907,2]
[382212684,1756546929126,-543.36339353,0.00019907,2]
[382212685,1756546929477,-500.0,0.00019907,2]
[382212686,1756546929507,-500.0,0.00019907,2]
[382212687,1756546929537,-500.0,0.00019907,2]
[382212688,1756546929566,-634.55790336,0.00019907,2]
[382212689,1756546929596,-500.0,0.00019907,2]
[382212690,1756546929629,-529.77930869,0.00019907,2]
[382212691,1756546929662,-529.77930869,0.00019907,2]
[382212692,1756546929692,-529.77930869,0.00019907,2]
[382212693,1756546929722,-529.77930869,0.00019907,2]
[382212694,1756546929903,-529.77930869,0.00019907,2]
[382212695,1756546929936,-529.77930869,0.00019907,2]
[382212696,1756546929966,-529.77930869,0.00019907,2]
[382212697,1756546929997,-529.77930869,0.00019907,2]
[382212698,1756546930028,-529.77930869,0.00019907,2]
[382212699,1756546930059,-529.77930869,0.00019907,2]
[382212700,1756546930090,-529.77930869,0.00019907,2]
[382212701,1756546930120,-529.77930869,0.00019907,2]
[382212702,1756546930151,-529.77930869,0.00019907,2]
[382212703,1756546930272,-529.77930869,0.00019907,2]
[382212704,1756546930303,-529.77930869,0.00019907,2]
[382212705,1756546930335,-529.77930869,0.00019907,2]
[382212706,1756546930367,-529.77930869,0.00019907,2]
[382212707,1756546930397,-529.77930869,0.00019907,2]
[382212708,1756546930428,-529.77930869,0.00019907,2]
[382212709,1756546930459,-500.0,0.00019907,2]
[382212710,1756546930489,-529.77930869,0.00019907,2]
[382212711,1756546930518,-500.0,0.00019907,2]
[382212712,1756546930546,-83.09967834,0.00019907,2]
[382212713,1756546930940,-416.90032166,0.00019907,2]
[382212714,1756546930971,-529.77930869,0.00019907,2]
[382212715,1756546931001,-500.0,0.00019907,2]
[382212716,1756546931032,-529.77930869,0.00019907,2]
[382212717,1756546931062,-500.0,0.00019907,2]
[382212718,1756546931092,-529.77930869,0.00019907,2]
[382212719,1756546931120,-387.30074011,0.00019907,2]
[382212720,1756546931149,-500.0,0.00019907,2]
[382212721,1756546931179,-500.0,0.00019907,2]
[382212722,1756546931209,-500.0,0.00019907,2]
[382212723,1756546931278,-500.0,0.00019907,2]
[382212724,1756546931308,-500.0,0.00019907,2]
[382212725,1756546931340,-500.0,0.00019907,2]
[382212726,1756546931369,-500.0,0.00019907,2]
[382212727,1756546931399,-500.0,0.00019907,2]
[382212728,1756546931431,-500.0,0.00019907,2]
[382212729,1756546931461,-500.0,0.00019907,2]
[382212730,1756546931491,-500.0,0.00019907,2]
[382212731,1756546931522,-500.0,0.00019907,2]
[382212732,1756546931551,-500.0,0.00019907,2]
[382212733,1756546931710,-500.0,0.00019907,2]
[382212734,1756546931740,-500.0,0.00019907,2]
[382212735,1756546931769,-500.0,0.00019907,2]
[382212736,1756546931797,-500.0,0.00019907,2]
[382212737,1756546931827,-500.0,0.00019907,2]
[382212738,1756546931856,-500.0,0.00019907,2]
[382212739,1756546931885,-500.0,0.00019907,2]
[382212740,1756546932079,-500.0,0.00019907,2]
[382212741,1756546932115,-500.0,0.00019907,2]
[382212742,1756546932151,-500.0,0.00019907,2]
[382212743,1756546932411,-500.0,0.00019907,2]
[382212744,1756546932440,-500.0,0.00019907,2]
[382212745,1756546932470,-500.0,0.00019907,2]
[382212746,1756546932500,-512.92009554,0.00019907,2]
[382212747,1756546932529,-500.0,0.00019907,2]
[382212748,1756546932557,-500.0,0.00019907,2]
[382212749,1756546932587,-500.0,0.00019907,2]
[382212750,1756546932616,-500.0,0.00019907,2]
[382212751,1756546932647,-500.0,0.00019907,2]
[382212752,1756546932677,-474.16980892,0.00019907,2]
[382212753,1756546934828,-265.99343924,0.00019819,2]
[382212754,1756546934843,-214.00656076,0.00019819,2]
[382212755,1756546934853,-25.83019108,0.00019907,2]
[382212756,1756546934863,-260.16324816,0.00019907,2]
[382212757,1756546934882,-269.61606046,0.00019907,2]
[382212758,1756546934891,-230.38393954,0.00019907,2]
[382212759,1756546934906,-269.61606046,0.00019907,2]
[382212760,1756546934915,-230.38393954,0.00019907,2]
[382212761,1756546934930,-269.61606046,0.00019907,2]
[382212762,1756546934940,-230.38393954,0.00019907,2]
[382212763,1756546934969,-269.61606046,0.00019907,2]
[382212764,1756546934979,-230.38393954,0.00019907,2]
[382212765,1756546934993,-269.61606046,0.00019907,2]
[382212766,1756546935003,-230.38393954,0.00019907,2]
[382212767,1756546938318,-19.61606046,0.00019907,2]
[382212768,1756546938349,-439.26634441,0.00019907,2]
[382212769,1756546938379,-500.0,0.00019908,2]
[382212770,1756546938408,-500.0,0.00019908,2]
[382212771,1756546938437,-500.0,0.00019908,2]
[382212772,1756546938465,-187.78006525,0.00019908,2]
[382212773,1756546938494,-500.0,0.00019908,2]
[382212774,1756546938522,-500.0,0.00019908,2]
[382212775,1756546938551,-500.0,0.00019908,2]
[382212776,1756546938579,-556.78,0.00019908,2]
[382212777,1756546938608,-500.0,0.00019908,2]
[382212778,1756546938637,-93.12505976,0.00019908,2]
[382212779,1756546938776,-406.87494024,0.00019908,2]
[382212780,1756546938807,-500.0,0.00019908,2]
[382212781,1756546938836,-500.0,0.00019908,2]
[382212782,1756546938865,-500.0,0.00019908,2]
[382212783,1756546938894,-500.0,0.00019908,2]
[382212784,1756546938924,-500.0,0.00019908,2]
[382212785,1756546938954,-500.0,0.00019908,2]
[382212786,1756546938984,-500.0,0.00019908,2]
[382212787,1756546939013,-500.0,0.00019908,2]
[382212788,1756546939043,-500.0,0.00019908,2]
[382212789,1756546939168,-500.0,0.00019908,2]
[382212790,1756546939198,-500.0,0.00019908,2]
[382212791,1756546939227,-1178.14,0.00019916,2]
[382212792,1756546939259,-1035.9,0.00019916,2]
[382212793,1756546939287,-480.0,0.00019916,2]
[382212794,1756546939316,-456.1044307,0.00019916,2]
[382212795,1756546939348,-480.0,0.00019916,2]
[382212796,1756546939376,-259.7211386,0.00019916,2]
[382212797,1756546939662,-220.2788614,0.00019916,2]
[382212798,1756546939690,-759.57,0.00019916,2]
[382212799,1756546939879,-480.0,0.00019916,2]
[382212800,1756546939907,-480.0,0.00019916,2]
[382212801,1756546939937,-684.42,0.00019916,2]
[382212802,1756546939966,-480.0,0.00019917,2]
[382212803,1756546939995,-480.0,0.00019917,2]
[382212804,1756546940023,-480.0,0.00019917,2]
[382212805,1756546940051,-480.0,0.00019917,2]
[382212806,1756546940542,-2796.67,0.00019917,2]
[382212807,1756546940570,-480.0,0.00019917,2]
[382212808,1756546940597,-480.0,0.00019917,2]
[382212809,1756546940625,-482.4,0.00019917,2]
[382212810,1756546940654,-204.697243,0.00019917,10]
[382212811,1756546940682,-480.0,0.00019917,2]
[382212812,1756546941179,-177.98947369,0.00019824,2]
[382212813,1756546941207,-749.12,0.00019917,2]
[382212814,1756546941234,-1001.92,0.00019917,2]
[382212815,1756546941266,-480.0,0.00019917,2]
[382212816,1756546941294,-1209.35,0.00019917,2]
[382212817,1756546941323,-480.0,0.00019917,2]
[382212818,1756546941352,-645.23105262,0.00019917,2]
[382212819,1756546941402,-512.78894738,0.00019917,2]
[382212820,1756546941433,-872.16,0.00019917,2]
[382212821,1756546941462,-3231.36210524,0.00019917,2]
[382212822,1756546941512,-767.38789476,0.00019917,2]
[382212823,1756546941541,-845.1,0.00019917,2]
[382212824,1756546941571,-480.0,0.00019917,2]
[382212825,1756546941599,-480.0,0.00019917,2]
[382212826,1756546941627,-1554.56,0.00019917,2]
[382212827,1756546941718,-3123.26,0.00019917,2]
[382212828,1756546941746,-1032.79,0.00019917,2]
[382212829,1756546941931,-2250.1,0.00019917,2]
[382212830,1756546941961,-480.0,0.00019917,2]
[382212831,1756546941991,-365.10426726,0.00019918,2]
[382212832,1756546942018,-336.23610955,0.00019919,2]
[382212833,1756546942046,-480.0,0.00019919,2]
[382212834,1756546942077,-410.06432354,0.00019919,2]
[382212835,1756546942106,-480.0,0.00019919,2]
[382212836,1756546942935,-171.31974631,0.00019919,2]
[382212837,1756546942949,-308.68025369,0.00019919,2]
[382212838,1756546942959,-480.0,0.00019919,2]
[382212839,1756546942968,-899.22974631,0.00019919,2]
[382212840,1756546942992,-21.21025369,0.00019919,2]
[382212841,1756546943002,-1379.67,0.00019919,2]
[382212842,1756546943013,-480.0,0.00019919,2]
[382212843,1756546943023,-369.21974631,0.00019919,2]
[382212844,1756546943044,-480.0,0.00019919,2]
[382212845,1756546943060,-197.48025369,0.00019919,2]
[382212846,1756546943070,-167.62401357,0.00019919,2]
[382212847,1756546943084,-312.37598643,0.00019919,2]
[382212848,1756546943094,-23.86012312,0.00019919,2]
[382212849,1756546943109,-480.0,0.00019919,2]
[382212850,1756546943124,-5.91987688,0.00019919,2]
[382212851,1756546943133,-404.14444666,0.00019919,2]
[382212852,1756546943147,-75.85555334,0.00019919,2]
[382212853,1756546943158,-404.14444666,0.00019919,2]
[382212854,1756546943177,-75.85555334,0.00019919,2]
[382212855,1756546943189,-321.14504596,0.0001992,2]
[382212856,1756547109151,151.0,0.00027397,120]
[382212857,1756547180555,3639.73,0.00031023,60]
[382212859,1756547432057,-751.85569097,0.0001863,2]
[382212860,1756547432069,-528.70567176,0.0001863,2]
[382212861,1756547432081,-704.25000015,0.0001863,2]
[382212862,1756547432093,-637.16271783,0.0001863,2]
[382212905,1756547438034,-2378.02591929,0.0001863,2]
[382212906,1756547438043,-666.0,0.00018792,2]
[382212907,1756547438052,-300.0,0.00018817,2]
[382212908,1756547438062,-300.0,0.00018817,2]
[382212909,1756547438071,-300.0,0.00018817,2]
[382212910,1756547438080,-300.0,0.00018817,2]
[382212911,1756547438089,-300.0,0.00018817,2]
[382212912,1756547438098,-1200.0,0.00018817,2]
[382212913,1756547438107,-8730.9163583,0.00018818,2]
[382212914,1756547438116,-2698.86794618,0.00019178,2]
[382212915,1756547438126,-1522.26065262,0.00019718,2]
[382212916,1756547438135,-190.38797784,0.00019798,2]
[382212917,1756547438144,-190.38797783,0.00019811,2]
[382212918,1756547438153,-292.72865593,0.00019816,2]
[382212919,1756547438162,-261.34716842,0.00019816,2]
[382212920,1756547438171,-200.11481191,0.00019816,2]
[382212921,1756547438180,-500.0,0.00019816,2]
[382212922,1756547438189,-500.0,0.00019816,2]
[382212923,1756547438198,-500.0,0.00019816,2]
[382212924,1756547438207,-324.79739637,0.00019816,2]
[382212925,1756547438217,-500.0,0.00019816,2]
[382212927,1756547438226,-500.0,0.00019816,2]
[382212928,1756547438235,-500.0,0.00019816,2]
[382212930,1756547438245,-500.0,0.00019816,2]
[382212931,1756547438254,-500.0,0.00019816,2]
[382212932,1756547438263,-500.0,0.00019816,2]
[382212934,1756547438273,-500.0,0.00019816,2]
[382212936,1756547438281,-500.0,0.00019816,2]
[382212938,1756547438291,-500.0,0.00019816,2]
[382212940,1756547438300,-500.0,0.00019816,2]
[382212941,1756547438310,-500.0,0.00019816,2]
[382212944,1756547438323,-500.0,0.00019816,2]
[382212946,1756547438332,-500.0,0.00019816,2]
[382212947,1756547438342,-500.0,0.00019816,2]
[382212949,1756547438351,-500.0,0.00019816,2]
[382212951,1756547438361,-189.72186667,0.00019816,2]
[382212953,1756547438371,-500.0,0.00019816,2]
[382212955,1756547438380,-500.0,0.00019816,2]
[382212957,1756547438391,-500.0,0.00019816,2]
[382212959,1756547438400,-500.0,0.00019816,2]
[382212961,1756547438413,-500.0,0.00019816,2]
[382212963,1756547438422,-500.0,0.00019816,2]
[382212965,1756547438431,-500.0,0.00019816,2]
[382212967,1756547438449,-500.0,0.00019816,2]
[382212969,1756547438459,-500.0,0.00019816,2]
[382212971,1756547438468,-500.0,0.00019816,2]
[382212973,1756547438477,-500.0,0.00019816,2]
[382212975,1756547438487,-500.0,0.00019816,2]
[382212978,1756547438498,-500.0,0.00019816,2]
[382212980,1756547438511,-500.0,0.00019816,2]
[382212982,1756547438521,-500.0,0.00019816,2]
[382212984,1756547438530,-500.0,0.00019816,2]
[382212986,1756547438539,-500.0,0.00019816,2]
[382212988,1756547438548,-500.0,0.00019816,2]
[382212990,1756547438557,-500.0,0.00019816,2]
[382212992,1756547438567,-500.0,0.00019816,2]
[382212994,1756547438577,-500.0,0.00019816,2]
[382212996,1756547438586,-500.0,0.00019816,2]
[382212998,1756547438595,-500.0,0.00019816,2]
[382213000,1756547438605,-493.52344248,0.00019816,2]
[382213002,1756547438615,-500.0,0.00019816,2]
[382213004,1756547438624,-500.0,0.00019816,2]
[382213006,1756547438633,-500.0,0.00019816,2]
[382213008,1756547438646,-500.0,0.00019816,2]
[382213010,1756547438655,-500.0,0.00019816,2]
[382213012,1756547438666,-500.0,0.00019816,2]
[382213014,1756547438675,-500.0,0.00019816,2]
[382213016,1756547438684,-500.0,0.00019816,2]
[382213018,1756547438694,-500.0,0.00019816,2]
[382213020,1756547438703,-500.0,0.00019816,2]
[382213022,1756547438713,-500.0,0.00019816,2]
[382213024,1756547438723,-500.0,0.00019816,2]
[382213026,1756547438732,-500.0,0.00019816,2]
[382213028,1756547438742,-500.0,0.00019816,2]
[382213030,1756547438751,-500.0,0.00019816,2]
[382213032,1756547438760,-425.08682644,0.00019816,2]
[382213034,1756547438770,-500.0,0.00019816,2]
[382213036,1756547438780,-50000.0,0.00019817,2]
[382213038,1756547438789,-1200.0,0.00019817,2]
[382213040,1756547438798,-1033.99,0.00019817,2]
[382213042,1756547438807,-480.0,0.00019817,2]
[382213044,1756547438817,-350.2922894,0.00019817,2]
[382213046,1756547438826,-480.0,0.00019818,2]
[382213048,1756547438835,-480.0,0.00019818,2]
[382213050,1756547438845,-480.0,0.00019818,2]
[382213052,1756547438854,-576.58,0.00019818,2]
[382213054,1756547438863,-480.0,0.00019818,2]
[382213056,1756547438872,-480.0,0.00019818,2]
[382213058,1756547438881,-480.0,0.00019818,2]
[382213060,1756547438891,-480.0,0.00019818,2]
[382213062,1756547438901,-210.86810619,0.00019818,2]
[382213064,1756547438911,-1403.9,0.00019818,2]
[382213066,1756547438920,-480.0,0.00019818,2]
[382213069,1756547438930,-480.0,0.00019818,2]
[382213071,1756547438939,-480.0,0.00019818,2]
[382213073,1756547438948,-480.0,0.00019818,2]
[382213075,1756547438958,-480.0,0.00019818,2]
[382213077,1756547438967,-480.0,0.00019818,2]
[382213079,1756547438977,-559.92,0.00019818,2]
[382213081,1756547438986,-480.0,0.00019818,2]
[382213083,1756547438995,-480.0,0.00019818,2]
[382213085,1756547439005,-480.0,0.00019818,2]
[382213087,1756547439015,-480.0,0.00019818,2]
[382213089,1756547439025,-480.0,0.00019818,2]
[382213091,1756547439034,-480.0,0.00019818,2]
[382213093,1756547439044,-480.0,0.00019818,2]
[382213095,1756547439054,-480.0,0.00019818,2]
[382213097,1756547439063,-480.0,0.00019818,2]
[382213099,1756547439073,-915.72,0.00019818,2]
[382213101,1756547439082,-480.0,0.00019818,2]
[382213103,1756547439091,-593.37,0.00019818,2]
[382213105,1756547439101,-480.0,0.00019818,2]
[382213107,1756547439111,-480.0,0.00019818,2]
[382213109,1756547439121,-480.0,0.00019818,2]
[382213111,1756547439130,-480.0,0.00019818,2]
[382213113,1756547439139,-480.0,0.00019818,2]
[382213115,1756547439149,-480.0,0.00019818,2]
[382213117,1756547439159,-480.0,0.00019818,2]
[382213119,1756547439168,-480.0,0.00019818,2]
[382213121,1756547439178,-480.0,0.00019818,2]
[382213123,1756547439187,-651.68,0.00019818,2]
[382213125,1756547439196,-480.0,0.00019818,2]
[382213127,1756547439205,-480.0,0.00019818,2]
[382213129,1756547439215,-480.0,0.00019818,2]
[382213131,1756547439224,-750.49,0.00019818,2]
[382213133,1756547439233,-644.24,0.00019818,2]
[382213157,1756547439440,-480.0,0.00019818,2]
[382213159,1756547439452,-1024.12,0.00019818,2]
[382213161,1756547439461,-828.39,0.00019818,2]
[382213163,1756547439471,-480.0,0.00019818,2]
[382213165,1756547439480,-1072.92,0.00019818,2]
[382213167,1756547439490,-1116.58,0.00019818,2]
[382213169,1756547439499,-589.28,0.00019818,2]
[382213171,1756547439509,-1010.17,0.00019818,2]
[382213173,1756547439518,-480.0,0.00019818,2]
[382213175,1756547439528,-2065.61,0.00019818,2]
[382213177,1756547439537,-1011.58,0.00019818,2]
[382213179,1756547439547,-312.58492005,0.00019818,2]
[382213181,1756547439556,-480.0,0.00019818,2]
[382213183,1756547439564,-480.0,0.00019818,2]
[382213185,1756547439574,-2152.22,0.00019818,2]
[382213187,1756547439583,-480.0,0.00019818,2]
[382213189,1756547439592,-494.95323693,0.00019818,2]
[382213191,1756547439602,-480.0,0.00019818,2]
[382213193,1756547439612,-480.0,0.00019818,2]
[382213196,1756547439621,-480.0,0.00019818,2]
[382213199,1756547439630,-322.11976191,0.00019818,2]
[382213201,1756547439640,-480.0,0.00019818,2]
[382213203,1756547439651,-2935.34,0.00019818,2]
[382213205,1756547439660,-480.0,0.00019818,2]
[382213207,1756547439669,-507.8708596,0.00019819,2]
[382213209,1756547439678,-480.0,0.00019819,2]
[382213212,1756547439688,-480.0,0.00019819,2]
[382213215,1756547439698,-480.0,0.00019819,2]
[382213218,1756547439707,-480.0,0.00019819,2]
[382213220,1756547439717,-480.0,0.00019819,2]
[382213222,1756547439726,-1160.86,0.00019819,2]
[382213224,1756547439735,-480.0,0.00019819,2]
[382213226,1756547439744,-639.94,0.00019819,2]
[382213228,1756547439754,-480.0,0.00019819,2]
[382213230,1756547439763,-480.0,0.00019819,2]
[382213232,1756547439772,-1030.48,0.00019819,2]
[382213234,1756547439782,-918.97,0.00019819,2]
[382213236,1756547439791,-893.14,0.00019819,2]
[382213238,1756547439802,-480.0,0.00019819,2]
[382213240,1756547439812,-1377.66,0.00019819,2]
[382213242,1756547439821,-480.0,0.00019819,2]
[382213244,1756547439832,-1515.49,0.00019819,2]
[382213246,1756547439841,-480.0,0.00019819,2]
[382213248,1756547439851,-1199.76,0.00019819,2]
[382213250,1756547439861,-1047.79,0.00019819,2]
[382213252,1756547439870,-1028.65,0.00019819,2]
[382213254,1756547439879,-480.0,0.00019819,2]
[382213256,1756547439889,-1550.6,0.00019819,2]
[382213258,1756547439899,-667.05,0.00019819,2]
[382213260,1756547439908,-480.0,0.00019819,2]
[382213262,1756547439917,-510.95,0.00019819,2]
[382213264,1756547439926,-1029.39,0.00019819,2]
[382213266,1756547439936,-1008.6,0.00019819,2]
[382213268,1756547439946,-480.0,0.00019819,2]
[382213270,1756547439955,-943.97,0.00019819,2]
[382213272,1756547439964,-564.85599606,0.00019819,2]
[382213274,1756547439973,-538.45,0.00019819,2]
[382213276,1756547439983,-1151.22,0.00019819,2]
[382213277,1756547439992,-1160.51,0.00019819,2]
[382213280,1756547440002,-531.39,0.00019819,2]
[382213281,1756547440011,-480.0,0.00019819,2]
[382213284,1756547440020,-1138.2,0.00019819,2]
[382213286,1756547440030,-480.0,0.00019819,2]
[382213288,1756547440039,-190.38797783,0.00019824,2]
[382213290,1756547440048,-151.0,0.000199,2]
[382213292,1756547440058,-690.5965356,0.000199,2]
[382213294,1756547440067,-1000.0,0.00019908,2]
[382213296,1756547440076,-500.0,0.00019908,2]
[382213297,1756547440085,-151.0,0.00019908,2]
[382213300,1756547440095,-500.0,0.00019908,2]
[382213302,1756547440104,-151.0,0.00019908,2]
[382213304,1756547440113,-500.0,0.00019908,2]
[382213306,1756547440123,-151.0,0.00019908,2]
[382213308,1756547440132,-500.0,0.00019908,2]
[382213310,1756547440142,-250.0,0.00019908,2]
[382213312,1756547440151,-427.19985236,0.00019908,2]
[382213314,1756547440160,-151.0,0.00019908,2]
[382213316,1756547440169,-187.78006525,0.00019908,2]
[382213318,1756547440179,-250.0,0.00019908,2]
[382213320,1756547440188,-151.0,0.00019908,2]
[382213322,1756547440199,-250.0,0.00019908,2]
[382213324,1756547440208,-500.0,0.00019908,2]
[382213326,1756547440217,-250.0,0.00019908,2]
[382213328,1756547440227,-500.0,0.00019908,2]
[382213330,1756547440237,-151.0,0.00019908,2]
[382213332,1756547440246,-250.0,0.00019908,2]
[382213334,1756547440259,-500.0,0.00019908,2]
[382213336,1756547440269,-151.0,0.00019908,2]
[382213338,1756547440278,-250.0,0.00019908,2]
[382213340,1756547440288,-500.0,0.00019908,2]
[382213342,1756547440299,-151.0,0.00019908,2]
[382213344,1756547440308,-151.0,0.00019908,2]
[382213346,1756547440318,-250.0,0.00019908,2]
[382213348,1756547440327,-500.0,0.00019908,2]
[382213350,1756547440337,-151.0,0.00019908,2]
[382213352,1756547440347,-151.0,0.00019908,2]
[382213354,1756547440356,-250.0,0.00019908,2]
[382213356,1756547440365,-500.0,0.00019908,2]
[382213358,1756547440374,-151.0,0.00019908,2]
[382213360,1756547440384,-153.38734499,0.00019908,2]
[382213362,1756547440393,-250.0,0.00019908,2]
[382213364,1756547440403,-500.0,0.00019908,2]
[382213366,1756547440416,-250.0,0.00019908,2]
[382213368,1756547440426,-500.0,0.00019908,2]
[382213370,1756547440435,-151.0,0.00019908,2]
[382213372,1756547440444,-250.0,0.00019908,2]
[382213374,1756547440454,-500.0,0.00019908,2]
[382213376,1756547440463,-151.0,0.00019908,2]
[382213378,1756547440473,-250.0,0.00019908,2]
[382213380,1756547440483,-500.0,0.00019908,2]
[382213382,1756547440492,-151.0,0.00019908,2]
[382213384,1756547440501,-250.0,0.00019908,2]
[382213386,1756547440511,-2347.87260389,0.00019908,2]
[382213388,1756547440520,-500.0,0.00019908,2]
[382213390,1756547440530,-151.0,0.00019908,2]
[382213392,1756547440539,-500.0,0.00019908,2]
[382213394,1756547440548,-151.0,0.00019908,2]
[382213396,1756547440557,-250.0,0.00019908,2]
[382213398,1756547440566,-500.0,0.00019908,2]
[382213400,1756547440575,-151.0,0.00019908,2]
[382213402,1756547440584,-151.0,0.00019908,2]
[382213404,1756547440594,-151.0,0.00019908,2]
[382213406,1756547440603,-151.0,0.00019908,2]